[Event "36th Indian-ch U13 Girls 2023"]
[Site "Secunderabad"]
[Date "2023.12.07"]
[Round "6.5"]
[White "Sherali Pattnaik"]
[Black "Modipalli Deekshitha"]
[Result "1-0"]
[ECO "C95"]
[WhiteElo "1575"]
[BlackElo "1394"]
[Annotator "NA RC"]
[PlyCount "101"]
[EventDate "2023.12.04"]
[EventType "swiss"]
[EventCountry "IND"]
[SourceTitle "playchess.com"]
[Source "ChessBase"]
[SourceQuality "1"]
[TimeControl "5400+30"]

1. e4 {[%emt 0:01:25]} e5 {[%emt 0:00:10]} 2. Nf3 {[%emt 0:00:06]} Nc6 {[%emt 0:00:06]} 3. Bb5 {[%emt 0:00:03]} a6 {[%emt 0:00:10]} 4. Ba4 {[%emt 0:00:04]} Nf6 {[%emt 0:00:06]} 5. O-O {[%emt 0:00:06]} Be7 {[%emt 0:00:10]} 6. Re1 {[%emt 0:00:16]} b5 {[%emt 0:00:12]} 7. Bb3 {[%emt 0:00:04]} d6 {[%emt 0:00:05]} 8. c3 {[%emt 0:00:21]} O-O {[%emt 0:00:12]} 9. h3 {[%emt 0:00:02]} Nb8 {[%emt 1:33:49]} 10. d4 {[%emt 0:00:09]} Nbd7 {[%emt 0:00:00]} 11. Nbd2 {[%emt 0:00:10]} Bb7 {[%emt 0:00:00]} 12. Bc2 {[%emt 0:00:04]} Re8 {[%emt 0:00:00]} 13. Nf1 {[%emt 0:00:06]} Bf8 {[%emt 0:00:00]} 14. Ng3 {[%emt 0:00:05]} g6 {[%emt 0:00:00]} 15. a4 {[%emt 0:00:08]} c5 {[%emt 0:00:00]} 16. d5 {[%emt 0:00:29]} c4 {[%emt 0:00:00]} 17. Bg5 {[%emt 0:00:44]} h6 {[%emt 0:00:00]} 18. Be3 {[%emt 0:00:04]} Qc7 {[%emt 0:00:00]} 19. Qd2 {[%emt 0:00:43]} Kh7 {[%emt 0:00:00]} 20. Ra3 {[%emt 0:02:12]} Nc5 {[%emt 0:00:00]} 21. Rea1 {[%emt 0:02:47]} Reb8 {[%emt 0:00:00]} 22. Qe2 {[%emt 0:03:15]} Bg7 {[%emt 0:00:00]} 23. Nd2 {[%emt 0:03:46]} Nfd7 {[%emt 0:00:00]} 24. Ngf1 {[%emt 0:06:27]} Nb6 {[%emt 0:00:00]} 25. Nh2 {[%emt 0:07:58]} Rc8 {[%emt 0:00:00]} 26. axb5 {[%emt 0:04:45]} axb5 {[%emt 0:00:00]} 27. Rxa8 {[%emt 0:01:22]} Rxa8 {[%emt 0:00:00]} 28. Rxa8 {[%emt 0:00:04]} Bxa8 {[%emt 0:00:00]} 29. Qf3 {[%emt 0:00:05]} Qe7 {[%emt 0:00:00]} 30. Qd1 {[%emt 0:11:09]} Qc7 {[%emt 0:00:00]} 31. Qa1 {[%emt 0:05:23]} Qb7 {[%emt 0:00:00]} 32. Qa5 {[%emt 0:08:35]} Nbd7 {[%emt 0:00:00]} 33. Nb1 {[%emt 0:04:26]} Qa6 {[%emt 0:00:00]} 34. Qxa6 {[%emt 0:02:56]} Nxa6 {[%emt 0:00:00]} 35. Na3 {[%emt 0:00:03]} b4 {[%emt 0:00:00]} 36. Nxc4 {[%emt 0:01:06]} bxc3 {[%emt 0:00:00]} 37. bxc3 {[%emt 0:00:03]} Bf8 {[%emt 0:00:00]} 38. Kf1 {[%emt 0:10:06]} Ndc5 {[%emt 0:00:00]} 39. Ke2 {[%emt 0:05:10]} Be7 {[%emt 0:00:00]} 40. Nf1 {[%emt 0:01:47]} Kg7 {[%emt 0:00:00]} 41. Nfd2 {[%emt 0:00:44]} Bb7 {[%emt 0:00:00]} 42. Nb3 {[%emt 0:01:13]} Nxb3 {[%emt 0:00:00]} 43. Bxb3 {[%emt 0:00:01]} f5 {[%emt 0:00:00]} 44. f3 {[%emt 0:00:09]} f4 {[%emt 0:00:00]} 45. Bb6 {[%emt 0:03:42]} Kf6 {[%emt 0:00:00]} 46. Ba4 {[%emt 0:04:56]} Nc5 {[%emt 0:00:00]} 47. Bb5 {[%emt 0:00:29]} g5 {[%emt 0:00:00]} 48. Bc7 {[%emt 0:01:01]} h5 {[%emt 0:00:00]} 49. Bxd6 {[%emt 0:00:26]} Bxd6 {[%emt 0:00:00]} 50. Nxd6 {[%emt 0:00:01]} Ba8 {[%emt 0:00:00]} 51. Bc6 {[%emt 0:00:23]} 1-0

[Event "36th Indian-ch U13 Girls 2023"]
[Site "Secunderabad"]
[Date "2023.12.07"]
[Round "6.6"]
[White "Yasaswi Krishna Bommi"]
[Black "Saranya Devi Narahari"]
[Result "0-1"]
[ECO "A07"]
[WhiteElo "1543"]
[BlackElo "1392"]
[Annotator "NA RC"]
[PlyCount "150"]
[EventDate "2023.12.04"]
[EventType "swiss"]
[EventCountry "IND"]
[SourceTitle "playchess.com"]
[Source "ChessBase"]
[SourceQuality "1"]
[TimeControl "5400+30"]

1. Nf3 {[%emt 0:00:03]} d5 {[%emt 0:01:30]} 2. g3 {[%emt 0:00:06]} Nd7 {[%emt 0:01:30]} 3. Bg2 {[%emt 0:01:15]} e5 {[%emt 0:01:30]} 4. d3 {[%emt 0:01:06]} Ngf6 {[%emt 0:01:51]} 5. O-O {[%emt 0:02:53]} Bc5 {[%emt 0:01:39]} 6. Nc3 {[%emt 0:03:29]} c6 {[%emt 0:03:54]} 7. e4 {[%emt 0:02:49]} dxe4 {[%emt 0:02:28]} 8. dxe4 {[%emt 0:06:17]} O-O {[%emt 0:04:01]} 9. Qe2 {[%emt 0:03:09]} Re8 {[%emt 0:03:49]} 10. Na4 {[%emt 0:03:50]} Bb6 {[%emt 0:10:26]} 11. Nxb6 {[%emt 0:04:22]} axb6 {[%emt 0:00:30]} 12. Rd1 {[%emt 0:03:15]} Qe7 {[%emt 0:03:10]} 13. Bd2 {[%emt 0:04:53]} Nc5 {[%emt 0:12:35]} 14. Ne1 {[%emt 0:06:24]} Be6 {[%emt 0:06:44]} 15. a3 {[%emt 0:05:15]} Nfd7 {[%emt 0:10:55]} 16. Bb4 {[%emt 0:09:40]} f6 {[%emt 0:08:22]} 17. Rd2 {[%emt 0:05:38]} Qf7 {[%emt 0:02:14]} 18. Rad1 {[%emt 0:04:35]} b5 {[%emt 0:14:24]} 19. Bf3 {[%emt 0:09:36]} Na6 {[%emt 0:07:05]} 20. Bd6 {[%emt 0:05:46]} Rad8 {[%emt 0:01:14]} 21. Ng2 {[%emt 0:02:50]} Ndc5 {[%emt 0:00:30]} 22. Bg4 {[%emt 0:02:45]} Na4 {[%emt 0:00:21]} 23. c3 {[%emt 0:02:00]} Bb3 {[%emt 0:00:27]} 24. Re1 {[%emt 0:01:28]} Nb6 {[%emt 0:00:11]} 25. Ne3 {[%emt 0:01:40]} g6 {[%emt 0:00:41]} 26. h4 {[%emt 0:01:37]} Be6 {[%emt 0:00:53]} 27. Bxe6 {[%emt 0:00:30]} Qxe6 {[%emt 0:00:11]} 28. Red1 {[%emt 0:00:35]} Na4 {[%emt 0:00:15]} 29. Bb4 {[%emt 0:01:06]} Rxd2 {[%emt 0:00:49]} 30. Rxd2 {[%emt 0:00:16]} N6c5 {[%emt 0:00:10]} 31. Bxc5 {[%emt 0:01:21]} Nxc5 {[%emt 0:00:04]} 32. Qf3 {[%emt 0:00:19]} Kg7 {[%emt 0:00:43]} 33. h5 {[%emt 0:00:54]} Re7 {[%emt 0:01:17]} 34. Kg2 {[%emt 0:01:38]} Rd7 {[%emt 0:00:34]} 35. Rxd7+ {[%emt 0:00:36]} Nxd7 {[%emt 0:00:07]} 36. g4 {[%emt 0:00:58]} Nc5 {[%emt 0:00:32]} 37. Nf1 {[%emt 0:01:12]} Qc4 {[%emt 0:00:44]} 38. Ng3 {[%emt 0:00:19]} Qd3 {[%emt 0:00:18]} 39. h6+ {[%emt 0:01:09]} Kf7 {[%emt 0:00:35]} 40. b4 {[%emt 0:01:11]} Qxf3+ {[%emt 0:00:12]} 41. Kxf3 {[%emt 0:00:04]} Na4 {[%emt 0:00:21]} 42. Ne2 {[%emt 0:00:17]} g5 {[%emt 0:00:21]} 43. Ke3 {[%emt 0:00:25]} Nb2 {[%emt 0:01:53]} 44. Nc1 {[%emt 0:00:54]} Kg6 {[%emt 0:00:00]} 45. Nb3 {[%emt 0:00:10]} b6 {[%emt 0:00:00]} 46. Nd2 {[%emt 0:00:09]} Nd1+ {[%emt 0:00:00]} 47. Ke2 {[%emt 0:00:30]} Nxc3+ {[%emt 0:00:00]} 48. Kd3 {[%emt 0:00:14]} Na4 {[%emt 0:00:08]} 49. f3 {[%emt 0:00:41]} Kxh6 {[%emt 0:00:07]} 50. Kc2 {[%emt 0:00:42]} Kg6 {[%emt 0:00:09]} 51. Nf1 {[%emt 0:00:46]} h5 {[%emt 0:00:57]} 52. Ng3 {[%emt 0:00:56]} h4 {[%emt 0:00:11]} 53. Nh1 {[%emt 0:00:03]} h3 {[%emt 0:00:06]} 54. Ng3 {[%emt 0:00:11]} h2 {[%emt 0:00:04]} 55. Kb3 {[%emt 0:00:13]} c5 {[%emt 0:00:26]} 56. bxc5 {[%emt 0:00:12]} bxc5 {[%emt 0:00:09]} 57. Nh1 {[%emt 0:00:14]} Nb6 {[%emt 0:00:02]} 58. Ng3 {[%emt 0:00:06]} Kf7 {[%emt 0:00:06]} 59. Kc3 {[%emt 0:00:41]} Ke6 {[%emt 0:00:09]} 60. Kd3 {[%emt 0:00:42]} Nc4 {[%emt 0:00:23]} 61. a4 {[%emt 0:04:05]} Nb2+ {[%emt 0:00:04]} 62. Ke3 {[%emt 0:00:00]} Nxa4 {[%emt 0:00:30]} 63. Kd3 {[%emt 0:00:00]} c4+ {[%emt 0:00:12]} 64. Kc2 {[%emt 0:00:00]} b4 {[%emt 0:00:03]} 65. Kc1 {[%emt 0:00:00]} b3 {[%emt 0:00:21]} 66. Kb1 {[%emt 0:00:00]} c3 {[%emt 0:00:06]} 67. Kc1 {[%emt 0:00:00]} c2 {[%emt 0:00:18]} 68. Nh1 {[%emt 0:00:00]} Nc3 {[%emt 0:00:04]} 69. Kb2 {[%emt 0:00:00]} Ne2 {[%emt 0:00:15]} 70. f4 {[%emt 0:00:00]} c1=Q+ {[%emt 0:00:11]} 71. Kxb3 {[%emt 0:00:00]} Qc3+ {[%emt 0:00:10]} 72. Ka4 {[%emt 0:00:00]} Nd4 {[%emt 0:00:14]} 73. f5+ {[%emt 0:00:00]} Kd6 {[%emt 0:00:06]} 74. Ng3 {[%emt 0:00:00]} Qb3+ {[%emt 0:00:06]} 75. Ka5 {[%emt 0:00:00]} Qb5# {[%emt 0:00:08]} 0-1

[Event "36th Indian-ch U13 Girls 2023"]
[Site "Secunderabad"]
[Date "2023.12.07"]
[Round "6.9"]
[White "Nihira Koul"]
[Black "Debarati Dey"]
[Result "1-0"]
[ECO "A21"]
[WhiteElo "1484"]
[BlackElo "1323"]
[Annotator "NA RC"]
[PlyCount "89"]
[EventDate "2023.12.04"]
[EventType "swiss"]
[EventCountry "IND"]
[SourceTitle "playchess.com"]
[Source "ChessBase"]
[SourceQuality "1"]
[TimeControl "5400+30"]

1. c4 {[%emt 0:00:06]} e5 {[%emt 0:00:51]} 2. Nc3 {[%emt 0:00:07]} Bb4 {[%emt 0:01:05]} 3. g3 {[%emt 0:00:28]} Bxc3 {[%emt 0:00:28]} 4. bxc3 {[%emt 0:00:08]} d6 {[%emt 0:00:20]} 5. Bg2 {[%emt 0:00:14]} Ne7 {[%emt 0:00:16]} 6. d4 {[%emt 0:00:32]} O-O {[%emt 0:00:45]} 7. Nf3 {[%emt 0:00:44]} f6 {[%emt 0:00:17]} 8. O-O {[%emt 0:00:54]} Nbc6 {[%emt 0:00:14]} 9. Ba3 {[%emt 0:02:24]} Rb8 {[%emt 0:01:40]} 10. e4 {[%emt 0:07:49]} f5 {[%emt 0:18:54]} 11. dxe5 {[%emt 0:17:18]} dxe5 {[%emt 0:02:10]} 12. Qxd8 {[%emt 0:00:09]} Rxd8 {[%emt 0:00:06]} 13. Bxe7 {[%emt 0:00:07]} Nxe7 {[%emt 0:00:20]} 14. Nxe5 {[%emt 0:00:07]} Re8 {[%emt 0:03:20]} 15. Rfe1 {[%emt 0:00:51]} fxe4 {[%emt 0:05:38]} 16. Bxe4 {[%emt 0:00:39]} Nf5 {[%emt 0:05:05]} 17. Bd5+ {[%emt 0:03:00]} Kf8 {[%emt 0:01:00]} 18. Rab1 {[%emt 0:01:48]} Ne7 {[%emt 0:08:23]} 19. Rbd1 {[%emt 0:02:52]} Nf5 {[%emt 0:05:32]} 20. c5 {[%emt 0:10:25]} c6 {[%emt 0:01:37]} 21. Bb3 {[%emt 0:00:21]} Nh6 {[%emt 0:04:32]} 22. Rd4 {[%emt 0:01:40]} g5 {[%emt 0:02:20]} 23. Rd6 {[%emt 0:11:41]} Kg7 {[%emt 0:08:33]} 24. Rxh6 {[%emt 0:00:14]} Rxe5 {[%emt 0:02:41]} 25. Rxe5 {[%emt 0:00:13]} Kxh6 {[%emt 0:00:30]} 26. Re8 {[%emt 0:00:02]} b5 {[%emt 0:02:45]} 27. Be6 {[%emt 0:00:17]} Bxe6 {[%emt 0:00:13]} 28. Rxb8 {[%emt 0:00:06]} a5 {[%emt 0:00:27]} 29. Rd8 {[%emt 0:00:41]} Bd5 {[%emt 0:01:27]} 30. Rxd5 {[%emt 0:00:49]} cxd5 {[%emt 0:00:10]} 31. c6 {[%emt 0:00:04]} b4 {[%emt 0:00:38]} 32. cxb4 {[%emt 0:00:10]} d4 {[%emt 0:00:19]} 33. c7 {[%emt 0:00:07]} d3 {[%emt 0:00:06]} 34. c8=Q {[%emt 0:00:07]} d2 {[%emt 0:00:15]} 35. Qd7 {[%emt 0:00:06]} d1=Q+ {[%emt 0:00:21]} 36. Qxd1 {[%emt 0:00:06]} axb4 {[%emt 0:00:02]} 37. Qd6+ {[%emt 0:00:08]} Kg7 {[%emt 0:00:22]} 38. Qxb4 {[%emt 0:00:06]} h5 {[%emt 0:00:08]} 39. Qd6 {[%emt 0:00:09]} h4 {[%emt 0:00:12]} 40. gxh4 {[%emt 0:00:05]} gxh4 {[%emt 0:00:04]} 41. a4 {[%emt 0:00:05]} h3 {[%emt 0:00:12]} 42. a5 {[%emt 0:00:05]} Kh7 {[%emt 0:00:10]} 43. a6 {[%emt 0:00:05]} Kg7 {[%emt 0:00:06]} 44. a7 {[%emt 0:00:08]} Kh7 {[%emt 0:00:16]} 45. a8=Q {[%emt 0:00:13]} 1-0

[Event "36th Indian-ch U13 Girls 2023"]
[Site "Secunderabad"]
[Date "2023.12.07"]
[Round "7.1"]
[White "Shreya G Hipparagi"]
[Black "Pratyasha Jena"]
[Result "1-0"]
[ECO "C54"]
[WhiteElo "1576"]
[BlackElo "1603"]
[Annotator "NA RC"]
[PlyCount "153"]
[EventDate "2023.12.04"]
[EventType "swiss"]
[EventCountry "IND"]
[SourceTitle "playchess.com"]
[Source "ChessBase"]
[SourceQuality "1"]
[TimeControl "5400+30"]

1. e4 {[%emt 0:00:03]} e5 {[%emt 0:00:07]} 2. Nf3 {[%emt 0:00:06]} Nc6 {[%emt 0:00:04]} 3. Bc4 {[%emt 0:00:09]} Bc5 {[%emt 0:00:08]} 4. c3 {[%emt 0:00:04]} Nf6 {[%emt 0:00:05]} 5. d3 {[%emt 0:00:05]} O-O {[%emt 0:00:14]} 6. O-O {[%emt 0:00:59]} d6 {[%emt 0:00:43]} 7. b4 {[%emt 0:01:07]} Bb6 {[%emt 0:00:11]} 8. Bg5 {[%emt 0:02:22]} Bg4 {[%emt 0:03:41]} 9. Nbd2 {[%emt 0:00:32]} Nb8 {[%emt 0:02:26]} 10. h3 {[%emt 0:02:21]} Be6 {[%emt 0:02:36]} 11. d4 {[%emt 0:04:11]} Bxc4 {[%emt 0:04:00]} 12. Nxc4 {[%emt 0:00:16]} exd4 {[%emt 0:00:40]} 13. cxd4 {[%emt 0:00:39]} h6 {[%emt 0:00:23]} 14. Bxf6 {[%emt 0:03:47]} Qxf6 {[%emt 0:00:20]} 15. Qd3 {[%emt 0:01:33]} Nc6 {[%emt 0:05:33]} 16. Nxb6 {[%emt 0:00:34]} axb6 {[%emt 0:00:09]} 17. a3 {[%emt 0:00:04]} Rfe8 {[%emt 0:04:36]} 18. Rfe1 {[%emt 0:01:07]} Rad8 {[%emt 0:10:23]} 19. Rac1 {[%emt 0:03:03]} Rd7 {[%emt 0:05:29]} 20. Re3 {[%emt 0:01:19]} Rde7 {[%emt 0:10:40]} 21. b5 {[%emt 0:00:48]} Nb8 {[%emt 0:02:43]} 22. Nd2 {[%emt 0:02:24]} c6 {[%emt 0:08:24]} 23. g3 {[%emt 0:01:29]} g5 {[%emt 0:07:24]} 24. f4 {[%emt 0:03:32]} gxf4 {[%emt 0:04:35]} 25. Rf3 {[%emt 0:00:22]} d5 {[%emt 0:07:59]} 26. e5 {[%emt 0:03:44]} Qg6 {[%emt 0:00:22]} 27. Qxg6+ {[%emt 0:00:35]} fxg6 {[%emt 0:00:03]} 28. gxf4 {[%emt 0:01:59]} cxb5 {[%emt 0:02:15]} 29. Kf2 {[%emt 0:01:03]} Nc6 {[%emt 0:02:11]} 30. Nb3 {[%emt 0:02:11]} Ra8 {[%emt 0:00:47]} 31. Rg1 {[%emt 0:00:05]} Kh7 {[%emt 0:01:07]} 32. h4 {[%emt 0:00:33]} Rxa3 {[%emt 0:05:48]} 33. h5 {[%emt 0:00:08]} g5 {[%emt 0:00:05]} 34. fxg5 {[%emt 0:00:45]} hxg5 {[%emt 0:00:15]} 35. Rxg5 {[%emt 0:00:06]} Na5 {[%emt 0:00:28]} 36. Nxa5 {[%emt 0:00:43]} Rxf3+ {[%emt 0:00:06]} 37. Kxf3 {[%emt 0:00:04]} bxa5 {[%emt 0:00:03]} 38. Rg6 {[%emt 0:00:15]} b4 {[%emt 0:08:19]} 39. Rb6 {[%emt 0:00:18]} b3 {[%emt 0:03:44]} 40. Rxb3 {[%emt 0:00:11]} Kh6 {[%emt 0:00:13]} 41. Rb5 {[%emt 0:00:23]} Kxh5 {[%emt 0:00:25]} 42. Rxa5 {[%emt 0:00:09]} Rd7 {[%emt 0:00:39]} 43. Kf4 {[%emt 0:00:48]} Rf7+ {[%emt 0:00:31]} 44. Ke3 {[%emt 0:00:04]} Rd7 {[%emt 0:00:03]} 45. Rb5 {[%emt 0:00:35]} Kg4 {[%emt 0:01:08]} 46. Rb6 {[%emt 0:00:15]} Kf5 {[%emt 0:00:15]} 47. Kd3 {[%emt 0:00:31]} Kg5 {[%emt 0:00:54]} 48. Rf6 {[%emt 0:00:09]} Rc7 {[%emt 0:00:43]} 49. Rd6 {[%emt 0:00:12]} Kf5 {[%emt 0:00:22]} 50. Rxd5 {[%emt 0:00:07]} Rc6 {[%emt 0:00:38]} 51. Rd7 {[%emt 0:00:27]} b6 {[%emt 0:00:28]} 52. Rf7+ {[%emt 0:00:18]} Kg6 {[%emt 0:00:15]} 53. Rf2 {[%emt 0:00:05]} Re6 {[%emt 0:00:18]} 54. Ke4 {[%emt 0:00:08]} Rc6 {[%emt 0:00:11]} 55. Kd5 {[%emt 0:00:14]} Rc8 {[%emt 0:00:29]} 56. Rf6+ {[%emt 0:00:08]} Kg5 {[%emt 0:00:07]} 57. Rxb6 {[%emt 0:00:07]} Rd8+ {[%emt 0:00:04]} 58. Rd6 {[%emt 0:00:24]} Rc8 {[%emt 0:00:12]} 59. e6 {[%emt 0:00:17]} Kf6 {[%emt 0:00:08]} 60. Rd7 {[%emt 0:00:04]} Ra8 {[%emt 0:00:23]} 61. Rf7+ {[%emt 0:00:11]} Kg6 {[%emt 0:00:05]} 62. Ke5 {[%emt 0:00:12]} Ra5+ {[%emt 0:00:28]} 63. d5 {[%emt 0:00:05]} Ra1 {[%emt 0:00:05]} 64. Rf4 {[%emt 0:00:11]} Ra7 {[%emt 0:00:27]} 65. Rg4+ {[%emt 0:00:17]} Kh5 {[%emt 0:00:08]} 66. Rg8 {[%emt 0:00:09]} Kh6 {[%emt 0:00:13]} 67. d6 {[%emt 0:00:14]} Ra5+ {[%emt 0:00:04]} 68. Kf6 {[%emt 0:00:12]} Kh7 {[%emt 0:00:35]} 69. Rg5 {[%emt 0:00:05]} Ra6 {[%emt 0:00:39]} 70. d7 {[%emt 0:00:06]} Rd6 {[%emt 0:00:05]} 71. Ke7 {[%emt 0:00:09]} Rd1 {[%emt 0:00:09]} 72. d8=Q {[%emt 0:00:07]} Rxd8 {[%emt 0:00:03]} 73. Kxd8 {[%emt 0:00:06]} Kh6 {[%emt 0:00:03]} 74. Rg1 {[%emt 0:00:06]} Kh5 {[%emt 0:00:05]} 75. e7 {[%emt 0:00:05]} Kh4 {[%emt 0:00:09]} 76. e8=Q {[%emt 0:00:06]} Kh3 {[%emt 0:00:02]} 77. Qh8# {[%emt 0:00:38]} 1-0

[Event "36th Indian-ch U13 Girls 2023"]
[Site "Secunderabad"]
[Date "2023.12.07"]
[Round "7.2"]
[White "Gorli Nyna"]
[Black "Kalyani Sirin"]
[Result "1-0"]
[ECO "C54"]
[WhiteElo "1652"]
[BlackElo "1802"]
[Annotator "NA RC"]
[PlyCount "91"]
[EventDate "2023.12.04"]
[EventType "swiss"]
[EventCountry "IND"]
[SourceTitle "playchess.com"]
[Source "ChessBase"]
[SourceQuality "1"]
[TimeControl "5400+30"]

1. e4 {[%emt 0:00:02]} e5 {[%emt 0:00:14]} 2. Nf3 {[%emt 0:00:05]} Nc6 {[%emt 0:00:07]} 3. Bc4 {[%emt 0:00:05]} Bc5 {[%emt 0:00:07]} 4. c3 {[%emt 0:00:04]} Nf6 {[%emt 0:00:06]} 5. d3 {[%emt 0:00:03]} d6 {[%emt 0:00:05]} 6. h3 {[%emt 0:00:08]} a5 {[%emt 0:01:02] 6...a6 is becoming the main line.} 7. a4 {[%emt 0:01:25]} O-O {[%emt 0:00:50]} 8. O-O {[%emt 0:00:07]} h6 {[%emt 0:01:25]} 9. Re1 {[%emt 0:02:04]} Ba7 {[%emt 0:00:44]} 10. Bb3 {[%emt 0:01:22]} Ne7 {[%emt 0:00:55]} 11. Nbd2 {[%emt 0:00:46]} Ng6 {[%emt 0:00:09]} 12. Nf1 {[%emt 0:00:06]} Re8 {[%emt 0:02:22]} 13. Ng3 {[%emt 0:00:30]} Be6 {[%emt 0:01:07] [#]} 14. Bxe6 $146 {[%emt 0:03:46]} ({Predecessor:} 14. Be3 Bxe3 15. fxe3 d5 16. exd5 Bxd5 17. Bc2 e4 18. dxe4 Nxe4 19. Nxe4 Bxe4 20. Bxe4 Rxe4 21. Qxd8+ Rxd8 {0-1 Dwilewicz,K (2134)-Cordoba Roa,A (2339) Titled Tuesday intern op 20th Jun Early blitz 2023 (4)}) 14... Rxe6 {[%emt 0:00:09]} 15. Nf5 {[%emt 0:02:46]} d5 {[%emt 0:05:23]} 16. Qc2 {[%emt 0:05:04]} Qd7 {[%emt 0:04:55]} 17. Bd2 {[%emt 0:04:38]} Rd8 {[%emt 0:06:50]} 18. Rad1 {[%emt 0:04:43]} Qe8 {[%emt 0:08:28]} 19. b3 $11 {[%emt 0:06:21]} Ne7 {[%emt 0:15:57]} 20. N3h4 {[%emt 0:04:10]} Nxf5 {[%emt 0:01:18]} 21. Nxf5 {[%emt 0:00:11]} Nh5 {[%emt 0:01:18]} 22. Be3 {[%emt 0:13:33]} Bxe3 {[%emt 0:01:07]} 23. Rxe3 {[%emt 0:02:07]} Nf4 {[%emt 0:08:55]} 24. Rg3 {[%emt 0:19:03]} Rg6 {[%emt 0:01:01]} 25. Rxg6 {[%emt 0:03:38]} Nxg6 {[%emt 0:00:24]} 26. exd5 {[%emt 0:03:43]} Rxd5 {[%emt 0:00:22]} 27. d4 {[%emt 0:00:42]} e4 {[%emt 0:05:07]} 28. Ng3 {[%emt 0:02:04]} e3 {[%emt 0:02:01]} 29. Re1 {[%emt 0:00:11]} exf2+ {[%emt 0:00:11]} 30. Qxf2 {[%emt 0:00:01]} Qd7 {[%emt 0:02:04]} 31. Qe3 {[%emt 0:02:24]} Kf8 {[%emt 0:01:58]} 32. Ne2 {[%emt 0:03:53]} Rg5 {[%emt 0:01:54]} 33. Kh1 {[%emt 0:02:26]} Nh4 {[%emt 0:01:25]} 34. Nf4 {[%emt 0:15:19]} Nf5 {[%emt 0:04:07]} 35. Qf3 {[%emt 0:00:00]} c6 {[%emt 0:08:00]} 36. g4 {[%emt 0:00:00]} Nh4 {[%emt 0:03:23]} 37. Qf2 {[%emt 0:00:00]} Ng6 {[%emt 0:00:21]} 38. Ne6+ {[%emt 0:00:00]} Kg8 {[%emt 0:00:04]} 39. Nxg5 {[%emt 0:00:00]} hxg5 {[%emt 0:00:06]} 40. Qf5 {[%emt 0:00:00]} Qd8 {[%emt 0:00:50]} 41. Re4 {[%emt 0:00:00]} Nh4 {[%emt 0:02:18]} 42. Qe5 {[%emt 0:00:00]} Kh7 {[%emt 0:00:33]} 43. Qe7 {[%emt 0:00:00]} Qb8 {[%emt 0:03:00]} 44. Qxf7 {[%emt 0:00:00]} Ng6 {[%emt 0:00:24]} 45. Re6 {[%emt 0:00:00]} Nf4 {[%emt 0:00:11]} 46. Re7 {[%emt 0:00:00]} 1-0

[Event "36th Indian-ch U13 Girls 2023"]
[Site "Secunderabad"]
[Date "2023.12.07"]
[Round "7.3"]
[White "Arshiya Das"]
[Black "Aadya Gupta"]
[Result "1/2-1/2"]
[ECO "C47"]
[WhiteElo "1729"]
[BlackElo "1460"]
[Annotator "NA RC"]
[PlyCount "79"]
[EventDate "2023.12.04"]
[EventType "swiss"]
[EventCountry "IND"]
[SourceTitle "playchess.com"]
[Source "ChessBase"]
[SourceQuality "1"]
[TimeControl "5400+30"]

1. e4 {[%emt 0:00:03]} e5 {[%emt 0:00:01]} 2. Nf3 {[%emt 0:00:04]} Nc6 {[%emt 0:00:03]} 3. Nc3 {[%emt 0:00:03]} Nf6 {[%emt 0:00:27]} 4. d4 {[%emt 0:00:03]} exd4 {[%emt 0:00:42]} 5. Nxd4 {[%emt 1:32:47]} Bb4 {[%emt 0:00:12]} 6. Nxc6 {[%emt 0:00:30]} bxc6 {[%emt 0:00:13]} 7. Bd3 {[%emt 0:00:00]} d5 {[%emt 0:00:17]} 8. exd5 {[%emt 0:00:00]} cxd5 {[%emt 0:00:06]} 9. O-O {[%emt 0:00:00]} O-O {[%emt 0:00:08]} 10. h3 {[%emt 0:00:00]} c6 {[%emt 0:01:02]} 11. Qf3 {[%emt 0:00:00]} Be6 {[%emt 0:01:54]} 12. Bg5 {[%emt 0:00:00]} Be7 {[%emt 0:00:17]} 13. Ne2 {[%emt 0:00:00]} Rb8 {[%emt 0:02:26]} 14. b3 {[%emt 0:00:00]} h6 {[%emt 0:01:23]} 15. Be3 {[%emt 0:00:00]} c5 {[%emt 0:04:32]} 16. Nf4 {[%emt 0:00:00]} Bc8 {[%emt 0:03:58]} 17. c3 {[%emt 0:00:00]} Bb7 {[%emt 0:01:25]} 18. Qd1 {[%emt 0:00:00]} Qc7 {[%emt 0:06:37]} 19. Bb1 {[%emt 0:00:00]} Bd6 {[%emt 0:02:33]} 20. Nh5 {[%emt 0:00:00]} Nxh5 {[%emt 0:17:00]} 21. Qxh5 {[%emt 0:00:00]} Qe7 {[%emt 0:07:39]} 22. Bd3 {[%emt 0:00:00]} Qf6 {[%emt 0:03:29]} 23. Rac1 {[%emt 0:00:00]} Rbc8 {[%emt 0:01:15]} 24. Rfe1 {[%emt 0:00:00]} Rfe8 {[%emt 0:01:01]} 25. Bd2 {[%emt 0:00:00]} Re5 {[%emt 0:03:28]} 26. Qg4 {[%emt 0:00:00]} Rce8 {[%emt 0:03:00]} 27. Rxe5 {[%emt 0:00:00]} Qxe5 {[%emt 0:02:35]} 28. f4 {[%emt 0:00:00]} Qf6 {[%emt 0:01:11]} 29. Qd7 {[%emt 0:00:00]} Qe7 {[%emt 0:05:12]} 30. Qg4 {[%emt 0:00:00]} Qf6 {[%emt 0:06:56]} 31. Rf1 {[%emt 0:00:00]} Bc8 {[%emt 0:06:25]} 32. Qf3 {[%emt 0:00:00]} Bb7 {[%emt 0:02:29]} 33. Qg4 {[%emt 0:00:00]} Bc8 {[%emt 0:00:55]} 34. Qf3 {[%emt 0:00:00]} Bb7 {[%emt 0:00:07]} 35. Kh1 {[%emt 0:00:00]} Ba8 {[%emt 0:02:15]} 36. Qg4 {[%emt 0:00:00]} Bc6 {[%emt 0:00:53]} 37. Qf3 {[%emt 0:00:00]} Ba8 {[%emt 0:00:44]} 38. Qg4 {[%emt 0:00:00]} Bc6 {[%emt 0:00:12]} 39. Qf3 {[%emt 0:00:00]} Ba8 {[%emt 0:00:03]} 40. Qg4 {[%emt 0:00:00]} 1/2-1/2